Cogmind - Beta 10.2 @@@ ROGUE MODE // 2021.12.07 @ 16:34:15 Player: ChromeKnight Result: Self-destructed Performance ------------- Evolutions (1) 500 Regions Visited (5) 1000 Robots Destroyed (13) 65 Value Destroyed (376) 376 Prototype IDs (26) 520 Alien Tech Used (0) 0 Bonus (475) 475 TOTAL SCORE: 2936 Bonus ------- Follower Combat Kills 189 Aligned with FarCom 300 Friendly Fire -14 Cogmind --------- Core Integrity 370/400 Matter 300/300 Energy 280/280 System Corruption 1% Temperature Cool (0) Movement Walking (180) Ox2 Location -9/Exiles Parts ------- > --- POWER (1) -------- Cooled Ion Engine > --- PROPULSION (2) --- Aluminum Leg Aluminum Leg > --- UTILITY (4) ------ Large Storage Unit Improved Weapon Shielding Heavy Armor Plating > --- WEAPON (2) ------- Beam Rifle Assault Rifle > --- INVENTORY (10) --- Cooled Ion Engine Improved Aluminum Leg Cooling System Experimental Sensor Array Targeting Computer Improved Weapon Shielding Improved Weapon Shielding Heavy Armor Plating Thief Drone Bay (3/3) Peak State ------------ > --- POWER ------------ Cooled Ion Engine > --- PROPULSION ------- Aluminum Leg Aluminum Leg > --- UTILITY ---------- Large Storage Unit Heavy Armor Plating Thief Drone Bay > --- WEAPON ----------- Beam Rifle Assault Rifle > --- INVENTORY -------- Cooled Ion Engine Aluminum Leg Improved Aluminum Leg Cooling System Experimental Sensor Array Targeting Computer Improved Weapon Shielding Improved Weapon Shielding Heavy Armor Plating [Rating: 24] Favorites ----------- Power Cooled Ion Engine Engine Cooled Ion Engine Power Core Light Nuclear Core Propulsion Aluminum Leg Leg Aluminum Leg Utility Improved Weapon Shielding Device Experimental Sensor Array Storage Small Storage Unit Protection Improved Weapon Shielding Weapon Assault Rifle Energy Gun Beam Rifle Ballistic Gun Assault Rifle Build | -11 -10 -10 -9 -9 -9 ------- Run | Scr Mat Min Mat Min Exi Slots Evolved 2 | . . . 2 . . Power . | . . . . . . Propulsion . | . . . . . . Utility 2 | . . . 2 . . Weapon . | . . . . . . Parts Attached 24 | 6 . 3 13 2 . Power 4 | 1 . . 3 . . Engine 2 | 1 . . 1 . . Core 2 | . . . 2 . . Reactor . | . . . . . . Propulsion 7 | 2 . 1 4 . . Treads . | . . . . . . Leg 7 | 2 . 1 4 . . Wheel . | . . . . . . Hover . | . . . . . . Flight . | . . . . . . Utility 9 | 1 . 1 5 2 . Device 2 | . . 1 . 1 . Storage 3 | 1 . . 2 . . Processor . | . . . . . . Hackware . | . . . . . . Protection 4 | . . . 3 1 . Artifact . | . . . . . . Weapon 4 | 2 . 1 1 . . Energy Gun 3 | 1 . 1 1 . . Energy Cannon . | . . . . . . Ballistic Gun 1 | 1 . . . . . Ballistic Cannon . | . . . . . . Launcher . | . . . . . . Special Weapon . | . . . . . . Impact Weapon . | . . . . . . Slashing Weapon . | . . . . . . Piercing Weapon . | . . . . . . Special Melee Weapon . | . . . . . . Unidentified Prototypes 3 | . . 1 1 1 . Parts Lost 2 | . 1 . 1 . . Power . | . . . . . . Propulsion . | . . . . . . Utility . | . . . . . . Weapon 2 | . 1 . 1 . . Highest Loss Streak 1 | . 1 . 1 . . Average Slot Usage (%) 83 | . 85 83 77 88 88 Engine 10 | . 14 14 5 11 11 Core 1 | . . . 4 . . Leg 23 | . 28 28 22 22 22 Storage 13 | . 14 14 14 11 11 Protection 11 | . . . 8 22 22 Energy Gun 11 | . 14 12 10 11 11 Ballistic Gun 11 | . 14 14 11 11 11 Naked Turns . | . . . . . . Heaviest Build 46 | 13 13 13 46 46 46 Greatest Support 20 | 20 20 20 20 20 20 Greatest Overweight (x) 2 | 1 . . 2 2 2 Average Overweight (x) . | . . . . 2 2 Largest Inventory Capacity 10 | 6 6 6 10 10 10 Average Capacity 8 | 5 6 6 8 10 10 Most Carried 10 | . 3 5 10 10 10 Average Carried 7 | . 1 4 7 10 10 Final Capacity 10 | 6 6 6 10 10 10 Final Carried 10 | . 3 5 10 10 10 Class Distribution -------------------- 96% | Mutant 3% | Scavenger-Mutant Dominant Class ---------------- Mutant | -10/Materials Mutant | -10/Mines Mutant | -9/Materials Mutant | -9/Mines Mutant | -9/Exiles Resources | -11 -10 -10 -9 -9 -9 ----------- Run | Scr Mat Min Mat Min Exi Matter Collected 528 | 251 30 23 167 57 . Remotely . | . . . . . . Salvage Created 569 | . 130 . 335 104 . Parts 32 | . 8 . 21 3 . Haulers Intercepted 1 | . . . 1 . . Recyclers Shooed 2 | . 1 1 . . . Parts Field Recycled . | . . . . . . Retrieved Matter . | . . . . . . Parts Self-Destructed . | . . . . . . Prevented . | . . . . . . Kills | -11 -10 -10 -9 -9 -9 ------- Run | Scr Mat Min Mat Min Exi Combat Hostiles Destroyed 9 | . 1 . 6 2 . Guns 9 | . 1 . 6 2 . Classes Destroyed 6 | . 3 . 3 . . Hauler 1 | . . . 1 . . Recycler 1 | . 1 . . . . Operator 2 | . 1 . 1 . . Grunt 5 | . 1 . 3 1 . Brawler 3 | . . . 2 1 . Sentry 1 | . . . 1 . . Best Kill Streak 2 | . 2 . 2 1 . Combat Bots Only 2 | . 1 . 2 1 . Max Kills in Single Turn 2 | . 1 . 2 1 . Gunslinging 1 | . . . 1 . . Exploded . | . . . . . . Melee . | . . . . . . Uniques/NPCs Destroyed . | . . . . . . Combat | -11 -10 -10 -9 -9 -9 -------- Run | Scr Mat Min Mat Min Exi Damage Taken 433 | . 179 . 195 59 . Core 51 | . 21 . 30 . . Absorbed by Shields . | . . . . . . Core Remaining (%) 95 | 100 . 91 . . . Volleys Fired 31 | . 7 1 15 8 . Largest 2 | . 2 2 2 2 . Hottest 76 | . 60 70 76 76 . Shots Fired 60 | . 14 2 28 16 . Gun 60 | . 14 2 28 16 . Cannon . | . . . . . . Launcher . | . . . . . . Special . | . . . . . . Kinetic 31 | . 7 1 15 8 . Thermal 22 | . . 1 13 8 . Explosive . | . . . . . . Electromagnetic 7 | . 7 . . . . Robot Hit Streak 23 | . 5 1 10 23 . Robot Miss Streak 3 | . 3 1 1 1 . Penetration Max . | . . . . . . Secondary Targets 2 | . 1 . 1 . . Max Gunslinging Chain 1 | . 1 . 1 . . Shots Hit Robots 45 | . 7 1 22 15 . Core Hits 23 | . 5 . 14 4 . Critical Hits . | . . . . . . Critical Kills . | . . . . . . Critical Parts Destroyed . | . . . . . . Melee Attacks . | . . . . . . Impact . | . . . . . . Slashing . | . . . . . . Piercing . | . . . . . . Sneak Attacks . | . . . . . . Combat Hostiles . | . . . . . . Follow-up Attacks . | . . . . . . Damage Inflicted 634 | . 134 . 290 210 . Guns 634 | . 134 . 290 210 . Cannons . | . . . . . . Explosions . | . . . . . . Melee . | . . . . . . Ramming . | . . . . . . Kinetic 281 | . 50 . 138 93 . Thermal 269 | . . . 152 117 . Explosive . | . . . . . . Electromagnetic 84 | . 84 . . . . Impact . | . . . . . . Slashing . | . . . . . . Piercing . | . . . . . . Highest Corruption 1 | . . . 1 1 1 Average Corruption 1 | . . . 1 1 1 Corruption Purged . | . . . . . . Effects 6 | . . . 3 2 1 Message Errors 4 | . . . 2 1 1 Energy Discharges 1 | . . . . 1 . Targeting Errors 1 | . . . 1 . . Overload Shots . | . . . . . . Overflow Damage . | . . . . . . Projectiles . | . . . . . . Explosions . | . . . . . . Melee . | . . . . . . Knockbacks . | . . . . . . Impact . | . . . . . . Kinetic . | . . . . . . Secondary . | . . . . . . Self-Inflicted Damage . | . . . . . . Shots . | . . . . . . Rammed . | . . . . . . Targets Rammed . | . . . . . . Kicked . | . . . . . . Crushed . | . . . . . . Highest Temperature 126 | . 12 9 30 126 . Average Temperature 31 | . 9 6 8 55 . Received Heat Transfer 132 | . 60 . 54 18 . Siege Activations . | . . . . . . Robots Corrupted . | . . . . . . Combat Hostiles . | . . . . . . Parts Fried . | . . . . . . Impact Corruptions . | . . . . . . Robots Melted . | . . . . . . Combat Hostiles . | . . . . . . Parts Melted 1 | . . . 1 . . Heat Transferred 740 | . . . 444 296 . Parts Sabotaged . | . . . . . . Parts Stolen . | . . . . . . Parts Stripped . | . . . . . . Power Chain Reactions . | . . . . . . Missiles Intercepted . | . . . . . . Alert | -11 -10 -10 -9 -9 -9 ------- Run | Scr Mat Min Mat Min Exi Peak Influence 382 | . 70 133 382 123 . Initial 73 | . . 23 51 73 . Average 136 | . 35 101 242 75 . Maximum Alert Level 1 | . . . 1 . . Low Security (%) 82 | 100 100 100 52 100 . Level 1 17 | . . . 47 . . Level 2 . | . . . . . . Level 3 . | . . . . . . Level 4 . | . . . . . . Level 5 . | . . . . . . High Security . | . . . . . . Max Security . | . . . . . . Squads Dispatched 3 | . 2 . 1 . . Investigation . | . . . . . . Extermination . | . . . . . . Reinforcement 3 | . 2 . 1 . . Assault . | . . . . . . Garrison . | . . . . . . Intercept . | . . . . . . Construction Impeded . | . . . . . . Haulers Reinforced . | . . . . . . Stealth | -11 -10 -10 -9 -9 -9 --------- Run | Scr Mat Min Mat Min Exi Distress Signals 2 | . 1 . 1 . . Communications Jammed . | . . . . . . Distress Signals . | . . . . . . Times Spotted 27 | . 9 4 12 2 . Peak Tracking Total 7 | . 7 3 4 2 . Tactical Retreats 3 | . . 1 2 . . Traps | -11 -10 -10 -9 -9 -9 ------- Run | Scr Mat Min Mat Min Exi Traps Triggered 1 | . . . 1 . . Indirectly . | . . . . . . Trap Hack Attempts . | . . . . . . Triggered . | . . . . . . Disarmed . | . . . . . . Reprogrammed . | . . . . . . Reused . | . . . . . . Traps Extracted . | . . . . . . Installed . | . . . . . . Triggered . | . . . . . . Machines | -11 -10 -10 -9 -9 -9 ---------- Run | Scr Mat Min Mat Min Exi Machines Disabled . | . . . . . . Max in Single Turn . | . . . . . . Machines Sabotaged . | . . . . . . Garrisons Compromised . | . . . . . . Overloaded Fab Kills . | . . . . . . Fab Network Shutdowns . | . . . . . . Hacking | -11 -10 -10 -9 -9 -9 --------- Run | Scr Mat Min Mat Min Exi Machines Accessed 4 | . 1 . 1 1 1 Terminals 1 | . 1 . . . . Fabricators . | . . . . . . Repair Stations 1 | . . . 1 . . Recycling Units . | . . . . . . Scanalyzers . | . . . . . . Garrison Access . | . . . . . . Total Hacks 7 | . 1 . 4 1 1 Successful 6 | . . . 4 1 1 Failed 1 | . 1 . . . . Catastrophic . | . . . . . . Database Lockouts . | . . . . . . Manual 2 | . 1 . . . 1 Terminals 1 | . 1 . . . . Fabricators . | . . . . . . Repair Stations 4 | . . . 4 . . Recycling Units . | . . . . . . Scanalyzers . | . . . . . . Garrison Access . | . . . . . . Terminal Hacks 2 | . . . . 1 1 Open Door 1 | . . . . 1 . EX-Prototype ID Bank 1 | . . . . . 1 Fabricator Hacks . | . . . . . . Repair Station Hacks 4 | . . . 4 . . Scan Component 2 | . . . 2 . . Repair 2 | . . . 2 . . Recycling Unit Hacks . | . . . . . . Scanalyzer . | . . . . . . Garrison Access Hacks . | . . . . . . Unauthorized Hacks . | . . . . . . Terminals . | . . . . . . Fabricators . | . . . . . . Repair Stations . | . . . . . . Recycling Units . | . . . . . . Scanalyzers . | . . . . . . Garrison Access . | . . . . . . Data Cores Recovered . | . . . . . . Used . | . . . . . . Hacking Detections 1 | . 1 . . . . Full Trace Events . | . . . . . . Feedback Events . | . . . . . . Feedback Blocked . | . . . . . . Robot Schematics Acquired . | . . . . . . Robots Built . | . . . . . . Matter . | . . . . . . Time . | . . . . . . Total Robot Build Rating . | . . . . . . Part Schematics Acquired . | . . . . . . Parts Built . | . . . . . . Matter . | . . . . . . Time . | . . . . . . Total Part Build Rating . | . . . . . . Parts Repaired 2 | . . . 2 . . Time 118 | . . . 118 . . Parts Recycled . | . . . . . . Recycled Matter . | . . . . . . Retrieved Matter . | . . . . . . Retrieved Components . | . . . . . . Parts Scanalyzed . | . . . . . . Part Schematics Acquired . | . . . . . . Parts Damaged . | . . . . . . Bothacking | -11 -10 -10 -9 -9 -9 ------------ Run | Scr Mat Min Mat Min Exi Used RIF Installer . | . . . . . . Robots Hacked . | . . . . . . Non-combat . | . . . . . . Combat . | . . . . . . Robot Hacks Applied . | . . . . . . Relay Couplers Released . | . . . . . . Robots Rewired . | . . . . . . Allies Hacked . | . . . . . . Hacks Repelled . | . . . . . . Allies | -11 -10 -10 -9 -9 -9 -------- Run | Scr Mat Min Mat Min Exi Total Allies 3 | . . 3 . . . Largest Group 3 | . . 3 2 . . Highest-Rated Group 40 | . . 40 32 . . Highest-Rated Ally 16 | . . 16 16 . . Total Orders . | . . . . . . Ally Attacks 47 | . . 16 31 . . Total Damage 607 | . . 198 409 . . Kills 10 | . . 4 6 . . Allies Corrupted . | . . . . . . Allies Melted . | . . . . . . Intel | -11 -10 -10 -9 -9 -9 ------- Run | Scr Mat Min Mat Min Exi Robot Analysis Total . | . . . . . . Derelict Logs Recovered 1 | . . 1 . . . Drone Launches . | . . . . . . Drone Recoveries . | . . . . . . Exploration | -11 -10 -10 -9 -9 -9 ------------- Run | Scr Mat Min Mat Min Exi Turns Passed 1934 | 40 163 359 635 537 200 Spaces Moved 958 | 28 114 251 295 159 111 Core 5 | 5 . . . . . Treads . | . . . . . . Legs 953 | 23 114 251 295 159 111 Wheels . | . . . . . . Hover . | . . . . . . Flight . | . . . . . . Fastest Speed 50 | 50 120 120 120 180 180 Average Speed 144 | 115 120 120 146 180 180 Slowest Speed 180 | 150 120 120 180 180 180 Overloaded Moves . | . . . . . . Propulsion Burnouts . | . . . . . . Robots Hopped . | . . . . . . Cave-ins Triggered . | . . . . . . Exploration Rate (%) 30 | 3 29 53 27 30 41 Regions Visited 5 Branch Regions 3 Pre-discovered Areas . | . . . . . . Known Exits Taken . | . . . . . . Unknown Exits Taken 5 | 1 1 1 1 1 . Scrap Searched 2 | . . 1 . 1 . Spaces Dug . | . . . . . . Terrain Destroyed . | . . . . . . Melee . | . . . . . . Projectile . | . . . . . . AOE . | . . . . . . Terrain Rammed . | . . . . . . Walls Destroyed . | . . . . . . Machines Disabled . | . . . . . . Actions | -11 -10 -10 -9 -9 -9 --------- Run | Scr Mat Min Mat Min Exi Total 1444 | 33 126 306 473 395 111 Wait 402 | . 3 51 125 223 . Move 953 | 27 113 250 294 158 111 Hop . | . . . . . . Pick Up 16 | . 3 . 12 1 . Fast Attach 17 | 6 . 2 7 2 . Attach 1 | . . . 1 . . Detach 2 | . . 1 1 . . Swap 6 | . . 1 5 . . Drop 16 | . . . 13 3 . Fire 31 | . 7 1 15 8 . Melee . | . . . . . . Ram . | . . . . . . Kick . | . . . . . . Crush . | . . . . . . Escape Stasis . | . . . . . . Rewire . | . . . . . . Trap . | . . . . . . Miscellaneous . | . . . . . . Route ------- -11/Scrapyard -10/Materials -10/Mines -9/Materials -9/Mines -9/Exiles History --------- Turn | Location | Event 11 | -11/Scrapyard | Discovered new exit (range 16) 41 | -11/Scrapyard | Entered Materials 182 | -10/Materials | Discovered new exit (range 15) 204 | -10/Materials | Entered Mines 212 | -10/Mines | Assisted by bots powering up and referring to "LRC-V3" 312 | -10/Mines | Build established: Mutant 330 | -10/Mines | Found a damaged Exp. Sensor Array with a note attached 333 | -10/Mines | Found Prototype Device 333 | -10/Mines | Identified Exp. Sensor Array 417 | -10/Mines | Discovered new exit (range 5) 427 | -10/Mines | Learned Materials stockpile data 563 | -10/Mines | Entered Materials 563 | -9/Materials | Accompanied by 2 allies 563 | -9/Materials | Evolved 2 slots: Utility x2 854 | -9/Materials | Repaired Exp. Sensor Array 893 | -9/Materials | Repaired Lgt. Nuclear Core 1111 | -9/Materials | Discovered new exit (range 6) 1198 | -9/Materials | Entered Mines 1201 | -9/Mines | Found the Drone Emporium 1212 | -9/Mines | Found Prototype Device 1212 | -9/Mines | Identified Thief Drone Bay 1392 | -9/Mines | Assembled infested the area 1728 | -9/Mines | Deemed a non-threat by the Exiles lab entrance 1728 | -9/Mines | Discovered new exit (range 5) 1735 | -9/Mines | Entered Exiles 1780 | -9/Exiles | Met 8R-AWN 1811 | -9/Exiles | Met EX-HEX 1863 | -9/Exiles | Met EX-BIN 1881 | -9/Exiles | Aligned with FarCom system 1883 | -9/Exiles | Given EX-Vault access code 1928 | -9/Exiles | Opened EX-Vault 1935 | -9/Exiles | Self-destructed Last Messages --------------- Modified TNC 0b10 Alert Chip Cloak of Protection Skeleton Box Trap Reconfigurator Supersonic Drone Bay Army-in-a-Box PSU Rigger Chronowheel AWS/Thermal Latent Energy Streamer Gui. Plasma Cannon Firepult YOLO Cannon AWS/Gauss XL Autogun Array AWS/Autocannon Field Lobotomy Kit Longsword +1 Deploy-a-Sentry Map ----- +----------------------------------------------------+ | | | | | | | | | | | | | | | | | | | | | | | | | | | | | | | | | | | | | | | | | | | ???????????????????#########?????????????????????? | | ???????????????????# ] #?????????????????????? | | ???????????????????# ] #?????????????????????? | | ???????????????????# ] #?????????????????????? | | ???????????????????# @X#?????????????????????? | | ???????????????????## ##?????????????????????? | | ???????????????????#X #??????????????????????? | | ???????????????????## #??????????????????????? | | ????????????????????# #??????????????????????? | | ????????????????????# #???#?##???????????????? | | ????????????????????# #??"""""???????????????? | | ????????????????????# ## """#??????????????? | | ????????????????????# X""#??????????????? | | ????????????????????# ## """#??????????????? | | ??????????????####??# #??"""""???????????????? | | ??????????????"""""?# #???####???????????????? | | ??????????????""" ## #??????????????????????? | | ????????????#""X" #??????????????????????? | | ????????????#" #??????????????????????? | | ????????????#" ## #??????????????????????? | | ????????????#""""""?# #?#########????????????? | | ??????????????"###??# #?#"""""""#????????????? | | ????????????????????# #?#"""""""#????????????? | | ????????????????????# #?#"""""""#????????????? | | ???????????????????## ###"" """"#????????????? | | ???????????????????#" """"#????????????? | | ???????????????????#" """#????????????? | | ???????????????????#" """#????????????? | | ???????????????????#" """#????????????? | +----------------------------------------------------+ Best States ------------- Heat Dissipation 28 Energy Generation 14 Energy Capacity 280 Matter Stores 300 Matter Capacity 300 Sight Range 16 Terrain Scan Density 10 Armor Coverage 600 Weapon Shielding 66 Evasion (%) 40 Item Schematics ----------------- None Robot Schematics ------------------ None Fabricated ------------ Nothing Alien Tech Used ----------------- None Achievements -------------- None Challenges ------------ None Game ------ Seed SuperchargedReflectiveWings Manual? 0 Play Time 00:12:06 Cumulative 242.1 hours Start 2021.12.07 @ 16:15:55 End 2021.12.07 @ 16:34:15 Sessions 1 Manual Loads 0 Difficulty Rogue Special Mode None Game No. 460 Rogue 305 Adventurer 148 Explorer 7 Win Type - Total 10 Types 8/0/1/1/0/0/0/0/0 Lore% 75 Gallery% 87 Achievement% 65 Wizard Run 0 Options --------- ASCII 0 Keyboard 0 Movement Numpad Keybinds 0 Fullscreen 1 Font 18/SmallcapsGlow Map View 76x50 Tactical HUD 1 Map Filters NONE Filters NONE Steam 1 RUN: 2a473188-387b-4301-98a8-cc60be6e10ed